Workbook

Sheet Sheet1
A1: 排名 | B1: 考号 | C1: 报考岗位 | D1: 姓名 | E1: 笔试成绩 | F1: 笔试成绩40% | G1: 面试成绩 | M1: 总成绩
G2: 计算机总成绩 | H2: 计算机20% | I2: 面试 | J2: 面试80% | K2: 面试成绩 | L2: 面试结果60%
A3: 1 | B3: 22 | C3: 辅导员 | D3: 洪欣薇 | E3: 78.5 | F3: =E3*0.4 -> 31.4 | G3: 62.5 | H3: =G3*0.2 -> 12.5 | I3: 86.3 | J3: =I3*0.8 -> 69.04 | K3: =H3+J3 -> 81.54 | L3: =K3*0.6 -> 48.92 | M3: =F3+L3 -> 80.32
A4: 2 | B4: 30 | C4: 辅导员 | D4: 李晓艺 | E4: 69 | F4: 27.6 | G4: 72.8 | H4: 14.56 | I4: 89.4 | J4: 71.52 | K4: 86.08 | L4: 51.65 | M4: 79.25
A5: 3 | B5: 33 | C5: 辅导员 | D5: 李禹佳 | E5: 62 | F5: 24.8 | G5: 86.1 | H5: 17.22 | I5: 88.6 | J5: 70.88 | K5: 88.10 | L5: 52.86 | M5: 77.66
A6: 4 | B6: 45 | C6: 辅导员 | D6: 宋吉娜 | E6: 66.5 | F6: 26.6 | G6: 62.5 | H6: 12.5 | I6: 83.7 | J6: 66.96 | K6: 79.46 | L6: 47.68 | M6: 74.28
A7: 5 | B7: 37 | C7: 辅导员 | D7: 刘 莉 | E7: 62 | F7: 24.8 | G7: 47.6 | H7: 9.52 | I7: 88 | J7: 70.40 | K7: 79.92 | L7: 47.95 | M7: 72.75
A8: 6 | B8: 53 | C8: 辅导员 | D8: 王道明 | E8: 59.5 | F8: 23.8 | G8: 49 | H8: 9.8 | I8: 89.6 | J8: 71.68 | K8: 81.48 | L8: 48.89 | M8: 72.69
A9: 7 | B9: 51 | C9: 辅导员 | D9: 唐 瑶 | E9: 68.5 | F9: 27.4 | G9: 62.3 | H9: 12.46 | I9: 78.6 | J9: 62.88 | K9: 75.34 | L9: 45.20 | M9: 72.60
A10: 8 | B10: 39 | C10: 辅导员 | D10: 马 畅 | E10: 66 | F10: 26.4 | G10: 67.1 | H10: 13.42 | I10: 78.7 | J10: 62.96 | K10: 76.38 | L10: 45.83 | M10: 72.23
A11: 9 | B11: 77 | C11: 辅导员 | D11: 张嘉芮 | E11: 63.5 | F11: 25.4 | G11: 53 | H11: 10.6 | I11: 84.3 | J11: 67.44 | K11: 78.04 | L11: 46.82 | M11: 72.22
A12: 10 | B12: 15 | C12: 辅导员 | D12: 宫 艺 | E12: 60 | F12: 24 | G12: 80.2 | H12: 16.04 | I12: 78.4 | J12: 62.72 | K12: 78.76 | L12: 47.26 | M12: 71.26
A13: 11 | B13: 27 | C13: 辅导员 | D13: 李梦瑶 | E13: 59.5 | F13: 23.8 | G13: 76.9 | H13: 15.38 | I13: 78.5 | J13: 62.80 | K13: 78.18 | L13: 46.91 | M13: 70.71
A14: 12 | B14: 68 | C14: 辅导员 | D14: 徐晓晨 | E14: 74 | F14: 29.6 | G14: 81.4 | H14: 16.28 | I14: 65.2 | J14: 52.16 | K14: 68.44 | L14: 41.06 | M14: 70.66
A15: 13 | B15: 63 | C15: 辅导员 | D15: 韦 祎 | E15: 69.5 | F15: 27.8 | G15: 44.6 | H15: 8.92 | I15: 77.6 | J15: 62.08 | K15: 71.00 | L15: 42.60 | M15: 70.40
A16: 14 | B16: 87 | C16: 辅导员 | D16: 朱时佳 | E16: 65 | F16: 26 | G16: 80.4 | H16: 16.08 | I16: 69.6 | J16: 55.68 | K16: 71.76 | L16: 43.06 | M16: 69.06
A17: 15 | B17: 31 | C17: 辅导员 | D17: 李 雪 | E17: 54.5 | F17: 21.8 | G17: 49.5 | H17: 9.9 | I17: 82.7 | J17: 66.16 | K17: 76.06 | L17: 45.64 | M17: 67.44
A18: 16 | B18: 78 | C18: 辅导员 | D18: 张 可 | E18: 68.5 | F18: 27.4 | G18: 40.4 | H18: 8.08 | I18: 70.8 | J18: 56.64 | K18: 64.72 | L18: 38.83 | M18: 66.23
A19: 17 | B19: 13 | C19: 辅导员 | D19: 窦 赫 | E19: 53.5 | F19: 21.4 | G19: 60.2 | H19: 12.04 | I19: 77.8 | J19: 62.24 | K19: 74.28 | L19: 44.57 | M19: 65.97
A20: 18 | B20: 32 | C20: 辅导员 | D20: 李依阳 | E20: 63.5 | F20: 25.4 | G20: 67 | H20: 13.4 | I20: 64.2 | J20: 51.36 | K20: 64.76 | L20: 38.86 | M20: 64.26
A21: 19 | B21: 82 | C21: 辅导员 | D21: 张 营 | E21: 58 | F21: 23.2 | G21: 51.8 | H21: 10.36 | I21: 71 | J21: 56.80 | K21: 67.16 | L21: 40.30 | M21: 63.50
A22: 20 | B22: 69 | C22: 辅导员 | D22: 薛思邈 | E22: 54 | F22: 21.6 | G22: 57.3 | H22: 11.46 | I22: 71.8 | J22: 57.44 | K22: 68.90 | L22: 41.34 | M22: 62.94
A23: 21 | B23: 02 | C23: 辅导员 | D23: 安 妮 | E23: 57 | F23: 22.8 | G23: 59.5 | H23: 11.9 | I23: 68.2 | J23: 54.56 | K23: 66.46 | L23: 39.88 | M23: 62.68
A24: 22 | B24: 62 | C24: 辅导员 | D24: 王 琢 | E24: 58 | F24: 23.2 | G24: 73.7 | H24: 14.74 | I24: 61.4 | J24: 49.12 | K24: 63.86 | L24: 38.32 | M24: 61.52
A25: 23 | B25: 75 | C25: 辅导员 | D25: 于 晨 | E25: 60 | F25: 24 | G25: 69.8 | H25: 13.96 | I25: 58.6 | J25: 46.88 | K25: 60.84 | L25: 36.50 | M25: 60.50
A26: 24 | B26: 66 | C26: 辅导员 | D26: 夏盛勇 | E26: 56 | F26: 22.4 | G26: 49.2 | H26: 9.84 | I26: 66.8 | J26: 53.44 | K26: 63.28 | L26: 37.97 | M26: 60.37
A27: 25 | B27: 76 | C27: 辅导员 | D27: 翟智戬 | E27: 56 | F27: 22.4 | G27: 40.1 | H27: 8.02 | I27: 63.2 | J27: 50.56 | K27: 58.58 | L27: 35.15 | M27: 57.55
A28: 26 | B28: 79 | C28: 辅导员 | D28: 张 鑫 | E28: 54 | F28: 21.6 | G28: 42.7 | H28: 8.54 | I28: 63.6 | J28: 50.88 | K28: 59.42 | L28: 35.65 | M28: 57.25
A29: 27 | B29: 55 | C29: 辅导员 | D29: 王家兴 | E29: 54 | F29: 21.6 | G29: 62 | H29: 12.4 | I29: 0 | J29: 0.00 | K29: 12.40 | L29: 7.44 | M29: 29.04
A30: 28 | B30: 14 | C30: 辅导员 | D30: 高 运 | E30: 59 | F30: 23.6 | G30: 43.9 | H30: 8.78 | I30: 0 | J30: 0.00 | K30: 8.78 | L30: 5.27 | M30: 28.87
A31: 29 | B31: 52 | C31: 辅导员 | D31: 田智慧 | E31: 53.5 | F31: 21.4 | G31: 53.6 | H31: 10.72 | I31: 0 | J31: 0.00 | K31: 10.72 | L31: 6.43 | M31: 27.83
A32: 30 | B32: 28 | C32: 辅导员 | D32: 李天天 | E32: 55 | F32: 22 | G32: 33.1 | H32: 6.62 | I32: 0 | J32: 0.00 | K32: 6.62 | L32: 3.97 | M32: 25.97
A33: 1 | B33: 91 | C33: 兽医类专业教师 | D33: 王云冲 | E33: 66.5 | F33: 26.6 | G33: 45 | H33: 9 | I33: 67.24 | J33: 53.79 | K33: 62.79 | L33: 37.68 | M33: 64.28
A34: 2 | B34: 89 | C34: 兽医类专业教师 | D34: 郝东雪 | E34: 42.5 | F34: 17 | G34: 63.9 | H34: 12.78 | I34: 62.38 | J34: 49.90 | K34: 62.68 | L34: 37.61 | M34: 54.61
A35: 3 | B35: 90 | C35: 兽医类专业教师 | D35: 齐 芳 | E35: 24.5 | F35: 9.8 | G35: 45.3 | H35: 9.06 | I35: 9.06 | J35: 7.25 | K35: 16.31 | L35: 9.78 | M35: 19.58
A36: 1 | B36: 94 | C36: 护理专业教师1 | D36: 孟媛媛 | E36: 55 | F36: =E36*0.4 -> 22 | G36: 52.3 | H36: =G36*0.2 -> 10.46 | I36: 80.86 | J36: =I36*0.8 -> 64.69 | K36: =H36+J36 -> 75.15 | L36: =K36*0.6 -> 45.09 | M36: =F36+L36 -> 67.09
A37: 2 | B37: 99 | C37: 护理专业教师1 | D37: 王 鑫 | E37: 56.5 | F37: =E37*0.4 -> 22.6 | G37: 48 | H37: =G37*0.2 -> 9.6 | I37: 60.8 | J37: =I37*0.8 -> 48.64 | K37: =H37+J37 -> 58.24 | L37: =K37*0.6 -> 34.94 | M37: =F37+L37 -> 57.54
A38: 3 | B38: 98 | C38: 护理专业教师1 | D38: 王铭泽 | E38: 57 | F38: 22.8 | G38: 51.6 | H38: 10.32 | I38: 58.64 | J38: 46.91 | K38: 57.23 | L38: 34.34 | M38: 57.14
A39: 1 | B39: 106 | C39: 会计 | D39: 汤 苹 | E39: 79 | F39: 31.6 | G39: 67.6 | H39: 13.52 | I39: 87.656 | J39: 70.12 | K39: 83.64 | L39: 50.19 | M39: 81.79
A40: 2 | B40: 112 | C40: 会计 | D40: 钟 琦 | E40: 77.5 | F40: 31 | G40: 62.1 | H40: 12.42 | I40: 84.42 | J40: 67.54 | K40: 79.96 | L40: 47.97 | M40: 78.97
A41: 3 | B41: 111 | C41: 会计 | D41: 张思金 | E41: 57.5 | F41: 23 | G41: 67.7 | H41: 13.54 | I41: 80.476 | J41: 64.38 | K41: 77.92 | L41: 46.75 | M41: 69.75
A42: 4 | B42: 102 | C42: 会计 | D42: 刘 畅 | E42: 57 | F42: 22.8 | G42: 68.6 | H42: 13.72 | I42: 76.12 | J42: 60.90 | K42: 74.62 | L42: 44.77 | M42: 67.57
A43: 5 | B43: 105 | C43: 会计 | D43: 宋晓曦 | E43: 62 | F43: =E43*0.4 -> 24.8 | G43: 56.2 | H43: =G43*0.2 -> 11.24 | I43: 66.976 | J43: =I43*0.8 -> 53.58 | K43: =H43+J43 -> 64.82 | L43: =K43*0.6 -> 38.89 | M43: =F43+L43 -> 63.69
A44: 1 | B44: 115 | C44: 图书管理员 | D44: 赵献宝 | E44: 61.6 | F44: =E44*0.4 -> 24.64 | G44: 61.6 | H44: =G44*0.2 -> 12.32 | I44: 77.66 | J44: =I44*0.8 -> 62.13 | K44: =H44+J44 -> 74.45 | L44: =K44*0.6 -> 44.67 | M44: =F44+L44 -> 69.31
A45: 2 | B45: 114 | C45: 图书管理员 | D45: 孙倩 | E45: 30.4 | F45: =E45*0.4 -> 12.16 | G45: 54.1 | H45: =G45*0.2 -> 10.82 | I45: 10.82 | J45: =I45*0.8 -> 8.66 | K45: =H45+J45 -> 19.48 | L45: =K45*0.6 -> 11.69 | M45: =F45+L45 -> 23.85
A46: 3 | B46: 113 | C46: 图书管理员 | D46: 李佳卉 | E46: 40.8 | F46: 16.32 | G46: 24 | H46: 4.8 | I46: 4.8 | J46: 3.84 | K46: 8.64 | L46: 5.18 | M46: 21.50
